bitfinex/quotes_SOLUSD_20251207
["timestamp","ask_amount","ask_price","bid_price","bid_amount"]
[1765113846871,0.66,131.99,131.94,8.25920266]
[1765113847050,8.66,132.0,131.95,0.68]
[1765113847251,0.66,131.99,131.94,7.57920266]
[1765113847687,0.66,131.99,131.92,8.25997525]
[1765113847855,0.66,131.99,131.93,7.57960958]
[1765113848370,7.57690559,131.98,131.9,35.26214028]
[1765113848574,26.51916956,131.98,131.91,7.58049981]
[1765113848769,0.66,131.97,131.91,7.58049981]
[1765113848949,8.66,131.96,131.91,7.58049981]
[1765113849271,8.66,131.96,131.9,7.58148428]
[1765113849462,0.66,131.95,131.89,7.58198522]
[1765113850074,0.66,131.95,131.9,7.58127886]
[1765113850270,0.66,131.95,131.89,7.5819389]
[1765113850471,7.57920266,131.94,131.89,7.5819389]
[1765113850975,0.66,131.93,131.87,7.58308982]
[1765113851277,8.66,131.92,131.87,7.58308982]
[1765113851458,9.32,131.93,131.88,7.58263557]
[1765113851956,0.66,131.92,131.88,7.58263557]
[1765113852165,8.66,131.93,131.89,0.68]
[1765113852368,0.66,131.92,131.87,7.58305493]
[1765113852559,8.24081553,131.92,131.87,7.58305493]
[1765113853171,0.66,131.91,131.87,7.58305493]
[1765113853384,0.66,131.91,131.86,7.58368739]
[1765113853866,0.66,131.91,131.86,8.26368739]
[1765113854261,0.66,131.91,131.85,7.58426292]
[1765113854467,7.58150113,131.9,131.84,26.54684093]
[1765113854668,8.24100575,131.91,131.84,26.54684093]
[1765113854872,8.24100575,131.91,131.85,0.68]
[1765113855268,0.66,131.9,131.84,7.58495145]
[1765113856479,8.24172618,131.9,131.84,7.58495145]
[1765113856668,8.64,131.89,131.84,7.58495145]
[1765113856871,16.968864,131.93,131.85,0.68]
[1765113857058,9.3,131.92,131.85,0.68]
[1765113857383,17.38051565,131.92,131.85,0.68]
[1765113858363,9.14,131.92,131.86,26.5433035]
[1765113858768,9.14,131.92,131.87,0.68]
[1765113858966,0.5,131.92,131.87,0.68]
[1765113859302,0.66,131.97,131.88,8.80994492]
[1765113859465,16.87633154,131.99,131.9,8.80994492]
[1765113859991,9.3,131.99,131.92,8.80994492]
[1765113860157,0.66,131.99,131.92,8.80994492]
[1765113860364,0.66,131.99,131.94,7.57920266]
[1765113860683,16.21531744,132.01,131.93,0.68]
[1765113860861,0.68,131.98,131.91,7.58078753]
[1765113861058,8.64,131.97,131.9,0.72]
[1765113861490,9.32,131.97,131.92,7.5803277]
[1765113861690,0.68,131.96,131.92,7.5803277]
[1765113861988,0.68,131.97,131.93,7.5796456]
[1765113862186,8.64,131.98,131.94,0.72]
[1765113862387,8.64,131.98,131.95,7.57862826]
[1765113862967,8.25532139,132.01,131.96,0.72]
[1765113863389,0.68,132.0,131.95,7.57862826]
[1765113863891,0.68,132.0,131.95,8.29862826]
[1765113864274,0.68,132.0,131.94,7.57916647]
[1765113864579,8.25618435,132.0,131.94,7.57916647]
[1765113864783,8.25618435,132.0,131.93,19.66884284]
[1765113864784,27.19557828,132.0,131.91,16.308864]
[1765113864977,16.988864,131.99,131.91,7.58050555]
[1765113865174,8.64,131.98,131.91,7.58050555]
[1765113865492,9.32,131.98,131.91,7.58050555]
[1765113865667,0.68,131.97,131.91,7.58050555]
[1765113866389,0.68,131.97,131.92,7.5802169]
[1765113866771,8.25797432,131.97,131.91,7.58092638]
[1765113867188,0.68,131.96,131.91,7.58092638]
[1765113868762,0.68,131.96,131.91,8.30092638]
[1765113869484,8.25845095,131.96,131.88,36.06922304]
[1765113869783,8.25845095,131.96,131.88,27.25927812]
[1765113869972,0.68,131.95,131.88,27.25927812]
[1765113870993,16.21920266,131.94,131.88,7.58265089]
[1765113871491,0.68,131.93,131.88,7.58265089]
[1765113872075,8.25991816,131.93,131.87,7.5832259]
[1765113873000,104.98,131.92,131.86,7.58371236]
[1765113873479,0.68,131.91,131.86,7.58371236]
[1765113873869,8.26126356,131.91,131.85,7.58437618]
[1765113874191,104.3,131.92,131.85,27.26531664]
[1765113874501,104.3,131.92,131.86,0.72]
[1765113874800,0.68,131.91,131.85,26.54531664]
[1765113875387,0.68,131.91,131.85,27.26531664]
[1765113875774,104.3,131.92,131.86,0.72]
[1765113876095,104.3,131.92,131.87,7.5832259]
[1765113876474,104.98,131.92,131.87,27.26129066]
[1765113876875,112.56046187,131.92,131.87,27.26129066]
[1765113877577,104.3,131.92,131.88,0.72]
[1765113878002,104.98,131.92,131.88,7.58224209]
[1765113878374,104.3,131.92,131.89,0.72]
[1765113878770,104.3,131.92,131.88,26.53886932]
[1765113878971,104.3,131.92,131.88,27.25886932]
[1765113880198,104.98,131.92,131.88,27.25886932]
[1765113880581,0.68,131.91,131.88,7.58224209]
[1765113880897,112.56039164,131.92,131.88,7.58224209]
[1765113881200,104.98,131.92,131.88,8.30224209]
[1765113881801,112.56059226,131.92,131.88,7.58224209]
[1765113882367,112.56059226,131.92,131.87,7.5832259]
[1765113882886,112.56059226,131.92,131.87,8.3032259]
[1765113883194,112.56059226,131.92,131.86,7.58359545]
[1765113883195,9.28,131.91,131.86,7.58359545]
[1765113883598,0.68,131.9,131.86,7.58359545]
[1765113884693,0.68,131.9,131.85,7.58437618]
[1765113884877,9.28,131.9,131.85,7.58437618]
[1765113885078,9.28,131.9,131.85,8.30437618]
[1765113885597,0.68,131.89,131.85,7.58437618]
[1765113885902,0.68,131.89,131.84,7.58494869]
[1765113886598,0.68,131.89,131.81,0.72]
[1765113886903,7.58265089,131.88,131.82,27.2712589]
[1765113887088,8.6,131.87,131.82,27.2712589]
[1765113887598,9.28,131.87,131.82,27.2712589]
[1765113888300,16.18220875,131.89,131.83,0.72]
[1765113888601,16.86220875,131.89,131.83,0.72]
[1765113889107,8.6,131.89,131.83,0.72]
[1765113890012,16.86212135,131.89,131.83,0.72]
[1765113890524,16.86212135,131.89,131.83,8.30506151]
[1765113890686,0.66,131.88,131.83,8.30506151]
[1765113891285,0.66,131.88,131.81,8.27614494]
[1765113891485,0.66,131.88,131.82,7.58570726]
[1765113891681,104.96,131.88,131.82,7.58570726]
[1765113892107,104.96,131.88,131.83,7.58551478]
[1765113892108,0.66,131.87,131.83,7.58551478]
[1765113892311,104.3,131.88,131.83,8.27551478]
[1765113892500,104.96,131.88,131.83,8.27551478]
[1765113893213,0.66,131.87,131.83,7.58551478]
[1765113893418,0.66,131.87,131.82,7.585957]
[1765113893723,0.66,131.87,131.82,8.275957]
[1765113893889,0.66,131.87,131.82,0.69]
[1765113894209,8.6,131.86,131.82,7.5859208]
[1765113894418,8.6,131.86,131.81,7.5864689]
[1765113894600,0.66,131.85,131.81,7.5864689]
[1765113895020,0.66,131.85,131.79,7.58743659]
[1765113895385,0.66,131.85,131.77,25.618864]
[1765113895386,7.58495145,131.84,131.78,7.58840491]
[1765113895592,7.58495145,131.84,131.78,8.29840491]
[1765113895791,8.6,131.83,131.79,0.71]
[1765113896111,8.58,131.84,131.79,0.71]
[1765113896614,8.58,131.87,131.8,8.80994492]
[1765113896816,8.6,131.87,131.8,17.40994492]
[1765113897017,8.6,131.87,131.82,8.80994492]
[1765113897513,8.6,131.9,131.83,26.54934384]
[1765113897714,113.6,131.9,131.83,26.54934384]
[1765113897891,0.7,131.89,131.83,27.25934384]
[1765113898312,0.7,131.89,131.83,7.58552681]
[1765113898520,0.7,131.89,131.81,18.96635969]
[1765113898521,0.7,131.89,131.82,7.58607667]
[1765113899422,26.53927812,131.88,131.79,19.67933276]
[1765113899944,0.7,131.87,131.79,19.67933276]
[1765113900096,8.58,131.86,131.79,19.67933276]
[1765113900519,0.7,131.85,131.8,7.58725341]
[1765113900919,0.7,131.85,131.8,8.29725341]
[1765113901116,0.7,131.85,131.81,0.71]
[1765113901616,104.3,131.87,131.81,0.71]
[1765113901827,113.58,131.87,131.81,0.71]
[1765113902625,113.58,131.87,131.82,7.58610226]
[1765113902924,112.88,131.87,131.82,7.58610226]
[1765113903226,113.58,131.87,131.83,0.71]
[1765113903413,112.88,131.87,131.83,0.71]
[1765113904112,113.58,131.87,131.83,0.71]
[1765113904426,112.88,131.87,131.83,0.71]
[1765113904719,0.7,131.9,131.84,7.58495145]
[1765113904918,9.28,131.9,131.84,7.58495145]
[1765113905124,9.28,131.9,131.84,27.25733009]
[1765113905700,0.7,131.89,131.84,27.25733009]
[1765113906122,104.3,131.88,131.8,0.71]
[1765113906323,112.88,131.87,131.8,0.71]
[1765113906499,112.88,131.87,131.83,7.58544355]
[1765113906701,113.58,131.87,131.82,18.96512251]
[1765113907116,112.88,131.87,131.82,18.96512251]
[1765113907301,0.7,131.9,131.83,0.71]
[1765113907621,123.2514235,131.92,131.84,8.80994492]
[1765113907622,0.7,131.92,131.84,8.80994492]
[1765113907814,9.28,131.92,131.84,8.80994492]
[1765113908019,9.28,131.92,131.85,0.71]
[1765113908818,0.7,131.91,131.86,26.5433035]
[1765113909225,0.7,131.91,131.86,27.2533035]
[1765113909530,0.7,131.91,131.86,7.583801]
[1765113909708,0.7,131.91,131.85,7.58419969]
[1765113910724,7.58150113,131.9,131.84,26.54673285]
[1765113910910,7.58100459,131.91,131.85,0.71]
[1765113911119,0.7,131.9,131.85,0.71]
[1765113912122,9.28,131.92,131.85,0.71]
[1765113912329,8.56,131.93,131.85,0.71]
[1765113912532,9.26,131.93,131.85,0.71]
[1765113912831,0.7,131.92,131.86,26.5433035]
[1765113913429,0.7,131.94,131.87,0.71]
[1765113913819,8.56,131.95,131.88,17.36994492]
[1765113914126,8.56,131.95,131.88,33.67880892]
[1765113914344,0.7,131.96,131.9,8.80994492]
[1765113914730,0.7,131.96,131.92,7.58035172]
[1765113915109,0.7,131.96,131.92,8.29035172]
[1765113915411,0.7,131.96,131.92,27.24123104]
[1765113915806,9.26,131.98,131.93,0.71]
[1765113916623,8.56,131.98,131.93,0.71]
[1765113916824,0.7,131.97,131.93,7.57963857]
[1765113917214,8.27756449,131.97,131.93,7.57963857]
[1765113917414,8.27756449,131.97,131.93,7.57971022]
[1765113917726,0.7,131.96,131.93,7.57971022]
[1765113918240,9.26,131.98,131.93,8.28971022]
[1765113918533,0.7,131.97,131.93,7.57971022]
[1765113918741,7.57805395,131.96,131.9,18.95352441]
[1765113919149,0.7,131.95,131.9,18.95352441]
[1765113919645,0.7,131.95,131.9,7.58150113]
[1765113919943,8.56,131.94,131.9,7.58150113]
[1765113920244,8.56,131.94,131.9,8.29150113]
[1765113920422,9.26,131.94,131.9,27.24525397]
[1765113920622,7.57772414,131.97,131.91,0.72]
[1765113920623,0.67,131.97,131.91,0.72]
[1765113920933,0.67,131.97,131.92,7.58035172]
[1765113921851,8.56,131.98,131.93,0.72]
[1765113922750,8.56,131.98,131.94,26.52720932]
[1765113923247,9.23,131.98,131.94,27.24720932]
[1765113923434,8.56,131.98,131.94,7.57920266]
[1765113923638,8.56,131.98,131.95,0.72]
[1765113923813,112.54449177,132.03,131.95,0.72]
[1765113924142,8.54,132.01,131.95,0.72]
[1765113924735,16.11521744,132.01,131.96,7.57805395]
[1765113924932,0.67,132.0,131.96,7.57805395]
[1765113925134,0.67,132.0,131.95,7.57848602]
[1765113926348,7.57480072,132.02,131.96,0.72]
[1765113926552,0.67,132.0,131.95,7.57848602]
[1765113926956,8.24598527,132.0,131.94,7.57920266]
[1765113927445,0.67,131.99,131.94,7.57920266]
[1765113928053,0.67,131.99,131.94,8.29920266]
[1765113928558,0.67,131.99,131.94,27.24720932]
[1765113928753,0.67,131.99,131.94,26.52720932]
[1765113928951,0.67,131.99,131.95,0.72]
[1765113929336,0.67,131.99,131.94,26.52720932]
[1765113929531,0.67,131.99,131.94,7.57920266]
[1765113929960,9.21,131.99,131.94,8.29920266]
[1765113930663,0.67,131.98,131.94,8.29920266]
[1765113931360,0.67,131.98,131.94,7.57920266]
[1765113931957,0.67,131.98,131.94,0.72]
[1765113934363,0.67,131.98,131.95,7.57862826]
[1765113935158,9.21,131.99,131.95,8.29862826]
[1765113935531,0.67,131.98,131.95,7.57862826]
[1765113935849,0.67,131.98,131.94,7.57897618]
[1765113936363,0.67,131.98,131.93,7.57942649]
[1765113936565,8.24738136,131.98,131.92,7.58035172]
[1765113936949,0.67,131.97,131.92,26.53123104]
[1765113937260,8.52,131.96,131.92,26.53123104]
[1765113937464,8.52,131.96,131.92,27.25123104]
[1765113937650,9.19,131.96,131.92,27.25123104]
[1765113942344,9.19,131.96,131.93,0.72]
[1765113942538,9.19,131.96,131.92,0.72]
[1765113942739,0.67,131.95,131.9,26.53525397]
[1765113942966,0.67,131.95,131.9,7.58150113]
[1765113944053,8.24882616,131.95,131.9,7.58150113]
[1765113944564,0.67,131.94,131.9,7.58150113]
[1765113945106,7.57977715,131.93,131.88,7.58253096]
[1765113945237,16.09977715,131.93,131.88,7.58253096]
[1765113945442,0.67,131.92,131.88,7.58253096]
[1765113946748,8.25063686,131.92,131.87,7.5832259]
[1765113946943,27.20151618,131.92,131.85,7.58422331]
[1765113947253,27.20151618,131.92,131.86,7.5837209]
[1765113947254,0.67,131.91,131.86,7.5837209]
[1765113947453,8.5,131.9,131.86,7.5837209]
[1765113947668,8.5,131.9,131.85,7.58430258]
[1765113947846,0.67,131.89,131.85,7.58430258]
[1765113949170,8.25233245,131.89,131.85,7.58430258]
[1765113949556,0.67,131.88,131.84,7.58489305]
[1765113949752,0.67,131.88,131.84,8.30489305]
[1765113949947,0.67,131.88,131.83,7.58546628]
[1765113950251,8.5,131.87,131.83,7.58546628]
[1765113950759,0.69,131.86,131.83,7.58546628]
[1765113951074,0.69,131.86,131.83,7.58548846]
[1765113954574,8.5,131.87,131.83,7.58548846]
[1765113954759,9.19,131.87,131.84,0.66]
[1765113954956,8.5,131.87,131.84,0.66]
[1765113955376,8.5,131.87,131.85,7.58437618]
[1765113955878,0.69,131.89,131.86,0.66]
[1765113957367,0.69,131.89,131.85,7.58437618]
[1765113957577,0.69,131.89,131.85,8.24437618]
[1765113958461,0.69,131.89,131.85,7.58437618]
[1765113958462,8.27212787,131.89,131.85,7.58437618]
[1765113958864,0.69,131.89,131.85,8.24437618]
[1765113959174,8.27208619,131.89,131.85,8.24437618]
[1765113959381,0.69,131.89,131.85,8.24437618]
[1765113959562,16.08166114,131.9,131.86,0.7]
[1765113959763,0.69,131.89,131.85,7.58437618]
[1765113960457,0.69,131.89,131.85,0.7]
[1765113962183,0.69,131.89,131.84,7.58495145]
[1765113962361,0.69,131.89,131.84,8.28495145]
[1765113963689,8.27219358,131.89,131.84,8.28495145]
[1765113963980,8.27219358,131.89,131.83,0.7]
[1765113964186,0.69,131.88,131.83,0.7]
[1765113965062,0.69,131.88,131.84,7.58495145]
[1765113965462,0.69,131.88,131.84,8.28495145]
[1765113966059,16.08162974,131.9,131.84,26.54733009]
[1765113966293,104.3,131.91,131.85,0.7]
[1765113967080,0.69,131.93,131.86,35.35324842]
[1765113967264,8.5,131.94,131.88,8.80994492]
[1765113967669,8.5,131.94,131.89,0.7]
[1765113968095,0.69,131.96,131.9,8.80994492]
[1765113968267,9.19,131.96,131.9,8.80994492]
[1765113968467,8.5,131.96,131.91,0.7]
[1765113969089,9.19,131.96,131.92,7.58035172]
[1765113969273,8.5,131.96,131.92,7.58035172]
[1765113969476,8.5,131.96,131.93,0.7]
[1765113970099,9.19,131.96,131.93,0.7]
[1765113970381,9.19,131.96,131.9,8.48]
[1765113970382,0.69,131.95,131.91,7.58073614]
[1765113970587,0.69,131.95,131.9,7.58131927]
[1765113970773,0.69,131.95,131.91,7.58081527]
[1765113971283,8.5,131.96,131.89,26.53603055]
[1765113971491,8.5,131.96,131.92,0.7]
[1765113971994,9.19,131.96,131.92,0.7]
[1765113972158,8.26731473,131.98,131.92,0.7]
[1765113973060,0.69,131.97,131.91,8.48]
[1765113973376,8.26800787,131.97,131.92,7.58035172]
[1765113973878,0.69,131.96,131.92,8.28035172]
[1765113974380,8.2670887,131.98,131.93,0.7]
[1765113975064,0.69,131.97,131.93,0.7]
[1765113975460,8.2670887,131.98,131.94,7.57920266]
[1765113975685,0.69,131.97,131.94,7.57920266]
[1765113975994,0.69,131.98,131.94,7.57920266]
[1765113976177,0.69,131.98,131.94,8.27920266]
[1765113977080,112.78,131.99,131.95,0.7]
[1765113977589,112.78,131.99,131.96,7.57805395]
[1765113977980,113.47,131.99,131.96,7.57805395]
[1765113979593,113.47,131.99,131.95,0.7]
[1765113979774,112.78,131.99,131.95,0.7]
[1765113979984,8.48,132.01,131.95,0.7]
[1765113980480,9.14,132.01,131.95,0.7]
[1765113981109,9.14,132.01,131.96,7.57805395]
[1765113981469,9.14,132.01,131.97,0.68]
[1765113981977,16.7151852,132.01,131.97,0.68]
[1765113982887,9.14,132.01,131.97,0.68]
[1765113983283,9.14,132.01,131.98,7.57690559]
[1765113983804,8.48,132.01,131.98,8.25690559]
[1765113984313,0.66,132.02,131.98,27.19916956]
[1765113985111,0.66,132.02,131.98,7.57690559]
[1765113985307,0.66,132.02,131.97,7.57728037]
[1765113985492,0.66,132.02,131.97,8.25728037]
[1765113986207,0.66,132.02,131.98,0.68]
[1765113987080,8.23461995,132.02,131.97,26.52097969]
[1765113987276,8.23461995,132.02,131.97,27.20097969]
[1765113987474,0.66,132.01,131.97,27.20097969]
[1765113988412,0.66,132.01,131.97,7.57728037]
[1765113988602,8.23532079,132.01,131.96,7.57803214]
[1765113988805,8.46,132.0,131.96,7.57803214]
[1765113988989,9.12,132.0,131.96,7.57803214]
[1765113989313,0.66,131.99,131.96,7.57803214]
[1765113989519,0.66,131.99,131.95,7.57844993]
[1765113990815,8.23659438,131.99,131.94,7.57910904]
[1765113991189,0.66,131.98,131.94,7.57910904]
[1765113991712,0.66,131.98,131.94,8.25910904]
[1765113997903,8.23694172,131.98,131.92,7.57980374]
[1765113998302,9.12,131.97,131.93,7.5796879]
[1765113998688,0.66,131.96,131.93,7.5796879]
[1765113999692,0.66,131.96,131.92,7.58035172]
[1765113999913,0.66,131.96,131.92,8.26035172]
[1765114000312,8.46,131.97,131.92,26.53123104]
[1765114000505,8.46,131.97,131.93,0.68]
[1765114000910,104.3,131.99,131.93,0.68]
[1765114001383,0.66,131.98,131.93,0.68]
[1765114001592,0.66,131.98,131.92,44.48117596]
[1765114002107,8.23694182,131.98,131.92,35.67123104]
[1765114002508,0.66,131.97,131.92,35.67123104]
[1765114002900,0.66,131.97,131.92,34.99123104]
[1765114003108,0.66,131.97,131.94,7.57920266]
[1765114004997,8.23779593,131.97,131.92,27.21073183]
[1765114005313,16.69779593,131.97,131.92,26.53073183]
[1765114005523,0.66,131.96,131.92,26.53073183]
[1765114005723,0.66,131.96,131.93,7.57974938]
[1765114005899,0.66,131.96,131.92,7.58024704]
[1765114006302,8.23819367,131.96,131.91,7.58092638]
[1765114006719,0.66,131.95,131.91,7.58092638]
[1765114008032,16.69769572,131.97,131.92,0.68]
[1765114008525,0.66,131.96,131.92,0.68]
[1765114008893,0.66,131.96,131.91,27.21324235]
[1765114009527,8.23819157,131.96,131.91,7.58092638]
[1765114009830,8.23819157,131.96,131.91,8.26092638]
[1765114010040,8.46,131.97,131.92,0.68]
[1765114010333,0.66,132.02,131.94,8.80994492]
[1765114010701,0.7,132.01,131.95,0.69]
[1765114010998,0.7,132.01,131.96,26.52318883]
[1765114011205,8.46,132.03,131.96,26.52318883]
[1765114011437,0.7,132.02,131.97,0.69]
[1765114011904,9.16,132.03,131.97,0.69]
[1765114012102,9.16,132.03,131.98,7.57690559]
[1765114012732,9.16,132.03,131.99,0.69]
[1765114013231,8.46,132.03,132.0,7.57575757]
[1765114013600,9.16,132.03,132.0,7.57575757]
[1765114013802,8.46,132.03,132.0,8.26575757]
[1765114014033,8.46,132.03,132.0,27.2051515]
[1765114014837,8.46,132.03,132.0,26.5151515]
[1765114014997,0.2,132.04,132.01,0.69]
[1765114015202,0.2,132.04,132.02,7.5746099]
[1765114015715,0.2,132.04,132.02,8.2646099]
[1765114015906,0.2,132.04,132.02,7.5746099]
[1765114016310,0.2,132.04,132.02,8.2646099]
[1765114016525,0.2,132.04,132.03,0.69]
[1765114017328,0.2,132.04,132.03,8.2640362]
[1765114018239,0.2,132.04,132.03,7.5740362]
[1765114019324,0.9,132.04,131.95,37.89286897]
[1765114019538,0.9,132.04,131.98,17.97994492]
[1765114019729,0.9,132.04,131.98,34.28880892]
[1765114019908,0.9,132.04,131.99,0.71]
[1765114020114,0.2,132.04,132.0,8.80994492]
[1765114020731,0.2,132.04,132.02,7.57456809]
[1765114020945,0.89,132.04,132.01,7.57502518]
[1765114021114,0.2,132.04,132.02,7.57454296]
[1765114021430,0.2,132.04,132.02,8.28454296]
[1765114021634,0.2,132.04,132.03,0.71]
[1765114021941,0.2,132.04,132.03,9.51994492]
[1765114023331,0.2,132.04,132.03,16.38398112]
[1765114023730,0.2,132.04,132.03,17.09398112]
[1765114024839,0.2,132.04,132.03,7.5740362]
[1765114025036,0.2,132.04,132.03,8.2840362]
[1765114029226,0.2,132.04,132.03,7.5740362]
[1765114029431,0.2,132.04,132.03,8.2840362]
[1765114031145,0.2,132.04,132.03,7.5740362]
[1765114031845,0.89,132.04,132.02,7.57454648]
[1765114032015,0.89,132.04,132.01,7.57508895]
[1765114032214,0.69,132.03,132.01,7.57508895]
[1765114033744,0.69,132.03,132.0,7.57575757]
[1765114034146,0.69,132.03,132.0,26.5151515]
[1765114034438,0.69,132.03,132.0,27.2251515]
[1765114037045,0.69,132.03,132.0,26.5151515]
[1765114037841,0.69,132.03,132.0,27.2251515]
[1765114038050,0.69,132.03,132.0,7.57575757]
[1765114038850,8.26407936,132.03,131.99,7.5761939]
[1765114039235,0.69,132.02,131.99,7.5761939]
[1765114040473,0.89,132.04,132.0,8.28575699]
[1765114040674,0.71,132.03,132.0,7.57575699]
[1765114045650,0.71,132.03,131.99,7.57633154]
[1765114046651,8.2840773,132.03,131.99,7.57633154]
[1765114046982,16.7440773,132.03,131.98,7.57670701]
[1765114047279,0.71,132.02,131.97,7.57733093]
[1765114047675,1.21,132.02,131.97,7.57733093]
[1765114047871,0.71,132.01,131.96,26.52249189]
[1765114048676,0.71,132.01,131.96,7.57805395]
[1765114049160,0.71,132.01,131.96,8.24805395]
[1765114050988,8.28532296,132.01,131.96,8.24805395]
[1765114051679,0.71,132.0,131.96,8.24805395]
[1765114052063,0.71,132.0,131.96,7.57805395]
[1765114052259,0.71,132.0,131.96,8.24805395]
[1765114053352,0.71,132.02,131.97,9.47994492]
[1765114053764,0.71,132.02,131.98,0.67]
[1765114054479,0.71,132.02,131.98,8.24645728]
[1765114054977,9.17,132.03,131.99,0.67]
[1765114055354,0.71,132.02,131.98,7.57645728]
[1765114055754,0.71,132.02,131.98,8.24645728]
[1765114061676,8.46,132.03,131.99,0.67]
[1765114061983,9.17,132.03,131.99,0.67]
[1765114062570,0.71,132.02,131.96,8.80994492]
[1765114062771,0.71,132.02,131.97,7.57711539]
[1765114062984,0.71,132.02,131.98,7.57681825]
[1765114063789,8.28487933,132.02,131.98,7.57681825]
[1765114064193,0.71,132.01,131.97,7.57726687]
[1765114066189,0.71,132.01,131.97,8.24726687]
[1765114066488,0.71,132.01,131.97,7.57726687]
[1765114067591,8.28545459,132.01,131.97,8.24726687]
[1765114068091,0.71,132.0,131.97,8.24726687]
[1765114072776,8.28580704,132.0,131.96,7.57785073]
[1765114072976,8.28580704,132.0,131.96,8.24785073]
[1765114074074,0.67,131.99,131.96,7.57785073]
[1765114074775,0.67,131.99,131.95,17.05857318]
[1765114074995,0.67,131.99,131.95,8.25862826]
[1765114075374,0.67,131.99,131.95,7.57862826]
[1765114075576,8.24633508,131.99,131.95,7.57862826]
[1765114075886,8.24633508,131.99,131.94,8.25912757]
[1765114076084,0.7,131.98,131.94,8.25912757]
[1765114076292,0.7,131.98,131.95,0.68]
[1765114076707,9.16,132.0,131.96,7.57805395]
[1765114077209,9.16,132.0,131.97,0.68]
[1765114077408,0.7,132.01,131.97,0.68]
[1765114078813,0.7,132.01,131.97,8.25701853]
[1765114079014,0.7,132.01,131.98,0.68]
[1765114081017,0.7,132.01,131.98,8.25644743]
[1765114081619,8.27520971,132.01,131.97,7.5772836]
[1765114081793,0.7,132.01,131.98,7.57685304]
[1765114082319,0.7,132.0,131.98,7.57685304]
[1765114082518,0.7,132.0,131.97,8.25726841]
[1765114082812,0.7,132.0,131.97,7.57726841]
[1765114084097,0.7,132.0,131.96,7.57794614]
[1765114084098,8.2757628,132.0,131.96,7.57794614]
[1765114084509,0.7,131.99,131.96,7.57794614]
[1765114086615,0.7,131.99,131.96,8.25794614]
[1765114087517,8.46,132.0,131.97,8.25705804]
[1765114088115,9.16,132.0,131.97,8.25705804]
[1765114088622,8.46,132.0,131.98,0.68]
[1765114089725,8.46,132.0,131.98,8.25664855]
[1765114090720,8.46,132.0,131.98,7.57664855]
[1765114090903,9.16,132.0,131.97,18.94369932]
[1765114091109,8.46,132.0,131.96,8.25805395]
[1765114091308,9.16,132.0,131.97,0.68]
[1765114092808,8.46,132.0,131.98,7.57690559]
[1765114093624,9.16,132.0,131.98,7.57690559]
[1765114094000,0.7,131.99,131.96,26.52318883]
[1765114094322,0.7,131.99,131.96,27.20318883]
[1765114095108,0.7,131.99,131.96,7.57805395]
[1765114097632,0.7,131.99,131.95,7.57862826]
[1765114097929,0.7,131.99,131.95,8.25862826]
[1765114102830,27.39719227,132.0,131.96,0.68]
[1765114103038,9.17,132.0,131.96,0.68]
[1765114103225,8.46,132.0,131.96,0.68]
[1765114103434,0.71,131.99,131.96,0.68]
[1765114103922,0.71,132.0,131.96,0.68]
[1765114104932,0.71,132.0,131.97,7.57747973]
[1765114105329,0.71,132.0,131.96,7.57785087]
[1765114105712,20.33657067,132.0,131.96,7.57785087]
[1765114105914,20.33657067,132.0,131.96,8.25785087]
[1765114106115,0.71,131.99,131.96,8.25785087]